bitfinex/quotes_ETHUSD_20250602
["timestamp","ask_amount","ask_price","bid_price","bid_amount"]
[1748827798777,0.92780711,2532.5,2532.4,3.94873986]
[1748827799776,0.55,2532.2,2531.5,0.7607]
[1748827799975,0.55,2531.8,2531.5,3.95015646]
[1748827800207,4.739,2531.8,2531.7,3.94991507]
[1748827800414,5.11668703,2531.8,2531.7,3.94991507]
[1748827800780,0.92768703,2531.8,2531.7,3.94991507]
[1748827801076,0.92768703,2531.8,2531.7,4.73681507]
[1748827801277,0.92768703,2531.8,2531.7,5.60550272]
[1748827801500,0.92768703,2531.8,2531.7,4.73681507]
[1748827801703,5.89978703,2531.8,2531.2,0.8235]
[1748827801906,0.55,2531.6,2531.2,3.9506571]
[1748827802128,0.55,2531.4,2531.3,3.95053924]
[1748827802330,0.92768703,2531.4,2531.3,3.95053924]
[1748827802497,0.92709154,2531.4,2531.3,3.95053924]
[1748827803314,1.13252563,2531.4,2531.3,3.95053924]
[1748827803713,0.75543409,2531.4,2531.3,3.95053924]
[1748827806014,0.75543409,2531.4,2531.2,3.95057457]
[1748827806613,0.75543409,2531.4,2531.3,3.95053924]
[1748827807446,0.75543409,2531.4,2531.1,3.95081227]
[1748827807653,0.75543409,2531.4,2530.8,0.7576]
[1748827807933,0.55,2531.2,2531.1,3.9508514]
[1748827809733,0.20543409,2531.4,2531.3,3.95053924]
[1748827809734,0.75543409,2531.4,2531.3,3.95053924]
[1748827809913,4.94143409,2531.4,2531.3,3.95053924]
[1748827811514,4.94143409,2531.4,2531.2,3.95069532]
[1748827811515,0.55,2531.3,2531.2,3.95069532]
[1748827812440,0.55,2531.3,2530.9,3.95108035]
[1748827812651,0.55,2531.3,2530.6,0.7979]
[1748827812816,0.55,2531.3,2530.9,3.95104273]
[1748827813004,1.71358373,2531.3,2530.9,3.95104273]
[1748827813205,1.71358373,2531.3,2531.0,3.95097607]
[1748827816039,1.71358373,2531.3,2531.2,3.95069532]
[1748827816347,0.55,2531.3,2531.2,3.95069532]
[1748827816780,4.50056254,2531.3,2530.8,3.95118918]
[1748827816953,0.55,2531.1,2530.9,3.95113232]
[1748827817151,4.723,2531.1,2531.0,3.9510075]
[1748827819869,4.723,2531.1,2530.9,3.95114969]
[1748827820655,4.723,2531.1,2531.0,3.9510075]
[1748827820859,4.723,2531.1,2530.9,3.95107864]
[1748827821578,4.723,2531.1,2530.8,3.95127432]
[1748827822089,4.723,2531.1,2530.6,0.7979]
[1748827822090,8.67386636,2531.1,2530.6,0.7979]
[1748827822268,8.67385997,2531.1,2530.4,0.779]
[1748827822453,0.55,2530.9,2530.6,3.95154958]
[1748827822834,3.29409103,2530.7,2530.2,0.7724]
[1748827823198,0.55,2530.3,2530.1,0.02]
[1748827823860,4.50221486,2530.3,2530.1,0.02]
[1748827824073,5.49671908,2530.3,2530.1,0.02]
[1748827824234,9.54450422,2530.3,2530.1,0.02]
[1748827825038,13.49662368,2530.3,2530.1,0.02]
[1748827825470,4.50225673,2530.2,2530.1,0.02]
[1748827825659,0.55,2530.2,2530.1,0.02]
[1748827826377,5.36964337,2530.2,2530.1,0.02]
[1748827826877,1.41738664,2530.2,2530.1,0.02]
[1748827827737,5.36964337,2530.2,2530.1,0.02]
[1748827828367,1.41738664,2530.2,2530.1,0.02]
[1748827828591,0.55,2530.2,2530.1,0.02]
[1748827829256,0.92565114,2530.2,2530.1,0.02]
[1748827829587,0.92565257,2530.2,2530.1,0.02]
[1748827829785,0.55,2530.2,2530.1,0.02]
[1748827829949,4.708,2530.2,2530.1,0.02]
[1748827833249,9.03567765,2530.2,2530.1,0.02]
[1748827833582,5.08341373,2530.2,2530.1,0.02]
[1748827833884,4.708,2530.2,2530.1,0.02]
[1748827834083,9.03567281,2530.2,2530.1,0.02]
[1748827834294,20.19187281,2530.2,2530.1,0.02]
[1748827838290,19.81645673,2530.2,2530.1,0.02]
[1748827838596,20.19161378,2530.2,2530.1,0.02]
[1748827840362,20.6605601,2530.2,2530.1,0.02]
[1748827840567,2.37,2530.0,2529.1,0.02]
[1748827840804,4.50381938,2529.2,2529.1,0.02]
[1748827841103,20.20005327,2529.2,2529.1,0.02]
[1748827841300,0.55,2528.7,2528.4,0.7664]
[1748827841457,0.55,2528.7,2528.6,3.95475757]
[1748827842072,0.55,2528.7,2528.5,3.95483617]
[1748827842363,0.55,2528.7,2528.6,3.95475757]
[1748827842564,0.55,2528.7,2528.4,4.72141159]
[1748827842796,0.55,2528.7,2528.5,3.95491398]
[1748827843183,0.55,2528.7,2528.3,3.95516286]
[1748827843376,0.55,2528.7,2528.1,0.02]
[1748827843377,4.50471597,2528.7,2528.2,4.75183723]
[1748827843577,0.55,2528.7,2528.2,4.75183723]
[1748827843788,0.55,2528.5,2528.2,0.7965]
[1748827843985,0.55,2528.5,2528.1,3.97550732]
[1748827843986,0.55,2528.3,2528.1,0.02]
[1748827844691,0.55,2528.3,2528.1,3.97551057]
[1748827844886,0.55,2528.4,2528.2,3.95536873]
[1748827845095,0.55,2528.4,2528.1,0.02]
[1748827845296,0.55,2528.4,2528.1,3.97541511]
[1748827845612,0.55,2528.4,2528.1,0.02]
[1748827845913,4.72,2528.4,2528.1,3.97553872]
[1748827846265,4.719,2528.5,2528.1,3.97553872]
[1748827846460,4.719,2528.5,2528.2,3.95529378]
[1748827847102,4.719,2528.5,2528.2,3.95533039]
[1748827847306,7.46309103,2528.5,2528.1,0.02]
[1748827847501,11.41808356,2528.5,2528.1,0.02]
[1748827847706,7.46309103,2528.5,2528.1,3.97550163]
[1748827848219,4.719,2528.5,2528.2,3.95534145]
[1748827848596,4.716,2528.5,2528.3,0.8193]
[1748827848931,0.55,2528.5,2528.4,3.9550704]
[1748827849686,0.38692593,2528.8,2528.7,3.95460117]
[1748827849924,3.11783799,2529.1,2528.4,0.87295807]
[1748827850199,0.55,2528.7,2528.3,4.77444597]
[1748827850417,0.55,2528.7,2528.3,4.77446802]
[1748827850624,0.55,2528.5,2528.1,4.72995505]
[1748827850840,3.29409103,2528.5,2528.1,0.7745]
[1748827850984,7.24912143,2528.5,2528.1,0.02]
[1748827851188,3.29409103,2528.5,2528.1,0.02]
[1748827851414,2.74409103,2528.5,2528.1,0.02]
[1748827851615,0.55,2528.4,2528.1,0.02]
[1748827853190,0.55,2528.5,2528.1,0.02]
[1748827853393,4.87921863,2528.5,2528.1,0.02]
[1748827853637,4.5050361,2528.5,2528.1,0.02]
[1748827853794,0.55,2528.2,2528.1,0.02]
[1748827854549,0.55,2528.2,2528.1,4.75393973]
[1748827854734,0.55,2528.2,2528.1,4.69582813]
[1748827855470,0.55,2528.1,2527.7,3.95608438]
[1748827855592,0.75808829,2528.1,2527.6,3.95623189]
[1748827856442,0.55,2527.9,2527.2,0.00908284]
[1748827856756,3.95601065,2527.8,2527.3,3.95671604]
[1748827856945,0.55,2527.7,2527.3,3.9567526]
[1748827857228,3.95610525,2527.8,2527.1,3.97699583]
[1748827857229,0.55,2527.8,2527.2,3.9569369]
[1748827857406,1.27138843,2527.9,2527.3,3.95675723]
[1748827857609,4.50605182,2527.8,2527.3,3.95675723]
[1748827857804,4.50605182,2527.8,2527.1,3.97704704]
[1748827857805,0.55,2527.6,2527.1,4.77497488]
[1748827858033,0.55,2527.6,2527.2,3.9569484]
[1748827858319,3.95577127,2528.0,2527.4,0.7979]
[1748827858525,3.95600236,2527.9,2527.4,0.7979]
[1748827858839,0.55,2527.8,2527.4,0.7979]
[1748827859192,1.11832316,2527.8,2527.4,0.7979]
[1748827859393,0.55,2527.6,2527.2,3.95692378]
[1748827859797,0.55,2527.6,2527.2,3.9568692]
[1748827860098,0.55,2527.6,2527.4,3.95648985]
[1748827860300,0.55,2527.6,2527.5,3.95647873]
[1748827860500,0.55,2527.6,2527.4,3.95655941]
[1748827860735,0.55,2527.6,2527.3,3.95671218]
[1748827860897,0.55,2527.6,2527.4,3.956597]
[1748827861099,0.55,2527.6,2527.5,3.95647873]
[1748827861324,0.55,2527.6,2527.4,3.9565526]
[1748827861803,0.55,2527.6,2527.1,0.8339]
[1748827862006,0.37421249,2528.0,2527.6,0.7708]
[1748827862258,0.37421249,2528.2,2527.8,3.95589947]
[1748827862550,0.37421249,2528.1,2527.8,3.95589947]
[1748827862710,0.55,2527.9,2527.8,3.95589947]
[1748827862905,0.37421249,2528.2,2528.1,3.95553973]
[1748827863117,0.57949536,2528.3,2528.1,3.95553973]
[1748827863327,0.20528287,2528.3,2528.1,4.77807729]
[1748827863534,0.55,2528.2,2528.1,4.77807729]
[1748827863748,0.20528287,2528.3,2528.1,4.77807729]
[1748827863943,0.55,2528.2,2528.1,4.77807729]
[1748827864148,0.20528287,2528.3,2528.1,4.77807729]
[1748827864348,0.20528287,2528.3,2528.2,3.95538327]
[1748827864830,0.39883279,2528.8,2528.5,3.95491398]
[1748827865006,0.37473023,2528.7,2528.6,3.95475757]
[1748827865206,0.20522748,2528.7,2528.6,3.95475757]
[1748827865652,0.57995771,2528.7,2528.6,3.95475757]
[1748827865950,0.20522748,2528.7,2528.6,4.70815757]
[1748827867251,0.75522748,2528.7,2528.6,0.7534]
[1748827867409,0.75522748,2528.7,2528.4,3.95502207]
[1748827867615,0.75522748,2528.7,2528.5,3.95490286]
[1748827868346,0.92540285,2528.6,2528.3,3.95517197]
[1748827868547,1.47470776,2528.6,2528.5,3.95491398]
[1748827868756,1.85013411,2528.6,2528.5,3.95491398]
[1748827869053,0.92542635,2528.6,2528.5,3.95491398]
[1748827869447,0.20522748,2528.7,2528.6,3.95475757]
[1748827869654,1.13120497,2528.7,2528.6,3.95475757]
[1748827869822,0.58120497,2528.7,2528.6,3.95475757]
[1748827870425,0.37597749,2528.7,2528.6,3.95475757]
[1748827870622,0.37597749,2528.7,2528.6,4.82731473]
[1748827871051,0.55,2529.1,2529.0,3.95413206]
[1748827871229,0.37630738,2529.1,2529.0,3.95413206]
[1748827871567,0.37630738,2529.1,2528.9,3.95423529]
[1748827871727,0.37630738,2529.0,2528.5,4.9779]
[1748827871946,0.55,2528.9,2528.8,3.95444479]
[1748827877815,0.55,2528.9,2528.7,3.95449987]
[1748827878516,0.55,2528.7,2528.1,0.7613]
[1748827878676,0.55,2528.7,2528.3,3.95521143]
[1748827878875,1.96876779,2528.7,2528.4,3.95495659]
[1748827879112,0.55,2528.3,2527.8,0.814]
[1748827879286,12.704,2528.3,2527.7,3.95607297]
[1748827879480,12.704,2528.3,2527.9,3.95575822]
[1748827879715,12.704,2528.3,2527.6,4.77030887]
[1748827879916,13.52299601,2528.3,2527.8,3.95587644]
[1748827880292,17.4783,2528.3,2527.7,3.95608743]
[1748827880475,1.3414,2528.1,2527.7,3.95608743]
[1748827880679,1.3414,2528.1,2527.6,4.77023789]
[1748827881121,5.29695416,2528.1,2527.5,3.95641812]
[1748827881334,6.33984901,2528.1,2527.5,3.95641812]
[1748827881481,2.38429485,2528.1,2527.5,3.95641812]
[1748827881823,2.78218405,2528.1,2527.5,3.95641812]
[1748827882026,2.78218405,2528.1,2527.3,0.7578]
[1748827882232,3.15790369,2528.1,2527.3,3.95679183]
[1748827882389,3.15790369,2528.1,2527.4,3.9566326]
[1748827882390,0.55,2527.9,2527.4,3.9566326]
[1748827882585,0.55,2527.7,2527.6,3.9563222]
[1748827882991,0.55,2527.9,2527.8,3.95600917]
[1748827883926,0.55,2528.1,2528.0,3.9556962]
[1748827884445,0.55,2528.1,2528.0,3.95565746]
[1748827884950,0.55,2528.3,2528.2,3.95538327]
[1748827885127,0.7654,2528.4,2528.3,3.95522683]
[1748827885452,4.9224,2528.4,2528.3,3.95522683]
[1748827885672,6.80220427,2528.4,2528.3,3.95522683]
[1748827885853,4.706,2528.4,2528.3,3.95522683]
[1748827886036,0.37563537,2528.6,2528.5,3.95491398]
[1748827886238,4.156,2528.9,2528.8,3.95429931]
[1748827886439,4.53263537,2528.9,2528.8,3.954326]
[1748827886625,4.157,2528.9,2528.8,3.954326]
[1748827887024,0.37563537,2529.0,2528.8,3.954326]
[1748827887227,4.53163537,2529.1,2529.0,3.95413206]
[1748827887511,12.71141229,2529.1,2529.0,3.95413206]
[1748827887711,4.53163537,2529.1,2529.0,3.95413206]
[1748827888037,4.156,2529.1,2529.0,3.95413206]
[1748827888210,1.38812287,2529.3,2529.1,3.95393287]
[1748827888413,4.155,2529.2,2529.1,3.95393287]
[1748827889051,4.705,2529.2,2529.1,3.95393287]
[1748827889237,0.58082287,2529.3,2529.2,3.95381938]
[1748827889556,0.2051875,2529.3,2529.2,3.95381938]
[1748827891913,0.37610443,2529.8,2529.6,3.95319418]
[1748827892115,4.151,2529.8,2529.7,3.9530379]
[1748827892319,4.171,2529.9,2529.7,3.9530379]
[1748827892651,0.20509395,2529.8,2529.7,3.9530379]
[1748827892946,0.75509395,2529.8,2529.7,3.9530379]
[1748827893650,0.20509395,2529.8,2529.7,3.9530379]
[1748827895850,0.75509395,2529.8,2529.7,3.9530379]
[1748827896751,0.55,2529.7,2529.0,0.786]
[1748827896959,1.89400939,2529.7,2529.5,3.95331763]
[1748827897654,1.89400939,2529.7,2529.6,3.95319418]
[1748827897955,0.20509395,2529.8,2529.7,3.9530379]
[1748827898114,0.75509395,2529.8,2529.7,3.9530379]
[1748827898510,0.55,2529.7,2529.3,3.95363622]
[1748827898752,0.55,2529.7,2529.5,3.95332776]
[1748827898947,4.696,2529.6,2529.5,3.95332776]
[1748827899149,0.55,2529.5,2529.2,3.95370968]
[1748827899347,1.3145,2529.5,2529.2,3.95374329]
[1748827899650,1.3145,2529.5,2528.9,3.95428842]
[1748827899848,1.3145,2529.5,2529.4,3.95350676]
[1748827900155,1.3145,2529.7,2529.6,3.95311396]
[1748827900328,0.55,2529.6,2529.5,3.95332462]
[1748827900928,0.55,2529.6,2529.4,3.95345114]
[1748827900929,0.20509395,2529.8,2529.7,3.9530379]
[1748827902355,0.55,2529.7,2529.6,3.95316972]
[1748827902854,1.25,2529.7,2529.6,3.95316972]
[1748827903360,2.6406094,2529.7,2529.4,3.95342804]
[1748827903562,2.6406094,2529.7,2529.5,3.95333002]
[1748827903720,2.0784,2529.7,2529.6,3.95319418]
[1748827904859,2.0784,2529.7,2529.1,3.95397572]
[1748827905259,2.0784,2529.7,2529.5,3.95324169]
[1748827905563,2.0784,2529.7,2529.6,3.95319418]
[1748827906257,1.25,2529.7,2529.6,3.95319418]
[1748827906425,0.20509395,2529.8,2529.7,3.9530379]
[1748827906723,0.75509395,2529.8,2529.7,3.9530379]
[1748827908247,0.90509395,2529.8,2529.7,4.74366111]
[1748827908445,1.45509395,2529.8,2529.7,4.74366111]
[1748827908645,0.90509395,2529.8,2529.7,4.74366111]
[1748827909274,1.25,2529.8,2529.7,4.74366111]
[1748827911587,1.25,2529.8,2529.7,5.52426111]
[1748827912487,0.55,2529.8,2529.7,5.52426111]
[1748827913990,0.55,2529.8,2529.7,4.74366111]
[1748827914190,0.55,2529.8,2529.7,3.9530379]
[1748827914390,1.3174,2529.8,2529.6,3.95315987]
[1748827914557,1.3174,2529.8,2528.9,0.8109]
[1748827914558,0.55,2529.7,2528.9,0.8109]
[1748827914757,0.37602964,2529.7,2529.6,3.95319418]
[1748827914955,0.57,2529.9,2529.8,3.95288165]
[1748827915286,0.94602922,2529.9,2529.8,3.95288165]
[1748827916414,0.94639281,2529.9,2529.8,3.95288165]
[1748827917711,0.94683148,2529.9,2529.8,3.95288165]
[1748827918787,0.94683148,2529.9,2529.7,3.9529063]
[1748827918993,0.92683148,2529.8,2529.7,3.9529063]
[1748827920644,0.92709708,2529.8,2529.7,3.9529063]
[1748827922926,0.92709708,2529.8,2529.7,4.82460053]
[1748827923621,0.92713751,2529.8,2529.7,4.82460053]
[1748827923827,0.02,2529.9,2529.8,3.95288165]
[1748827924049,0.02,2529.9,2529.8,4.75788165]
[1748827930321,0.02,2529.9,2529.8,4.79740391]
[1748827930522,0.02,2529.9,2529.8,6.56711796]
[1748827930930,0.02,2529.9,2529.8,6.5275957]
[1748827932232,0.02,2529.9,2529.8,10.6415957]
[1748827933696,0.02,2529.9,2529.8,6.5275957]
[1748827941355,0.02,2529.9,2529.8,10.6395957]
[1748827942541,0.02,2529.9,2529.8,18.6395957]
[1748827943472,0.02,2529.9,2529.8,23.3895957]
[1748827943785,0.02,2529.9,2529.8,23.3885957]
[1748827949106,0.02,2529.9,2529.8,19.2775957]
[1748827949473,0.02,2529.9,2529.8,23.3825957]
[1748827949888,0.02,2529.9,2529.8,24.4765957]
[1748827951407,0.02,2529.9,2529.8,20.3705957]
[1748827951703,0.02,2529.9,2529.8,24.4745957]
[1748827952614,0.02,2529.9,2529.8,3.95288165]
[1748827952767,0.02,2529.9,2529.2,3.95381938]
[1748827952768,0.55,2529.8,2529.2,3.95381938]
[1748827952966,0.55,2529.8,2529.7,3.9530379]
[1748827954204,0.02,2529.9,2529.8,3.95288165]
[1748827954408,0.02,2529.9,2529.8,5.22211098]
[1748827955263,0.02,2529.9,2529.8,3.95288165]
[1748827956590,0.02,2529.9,2529.8,3.9924045]
[1748827956794,0.02,2529.9,2529.8,3.95288165]
[1748827958975,0.02,2529.9,2529.8,4.76388165]
[1748827959202,0.02,2529.9,2529.8,12.76388165]
[1748827959368,0.02,2529.9,2529.8,15.92387428]
[1748827963397,0.02,2529.9,2529.8,20.03387428]
[1748827966145,0.02,2529.9,2529.8,15.92387428]
[1748827966308,0.02,2529.9,2529.8,3.95288165]
[1748827970532,0.02,2529.9,2529.8,16.84988165]
[1748827978703,0.02,2529.9,2529.8,22.56771464]
[1748827979113,0.02,2529.9,2529.8,27.31771464]
[1748827980250,0.02,2529.9,2529.8,17.47288165]
[1748827980418,0.02,2529.9,2529.8,21.10279098]
[1748827980939,0.02,2529.9,2529.8,12.33279098]
[1748827981138,0.02,2529.9,2529.8,5.04488165]
[1748827981345,0.55,2529.8,2529.6,3.95316232]
[1748827981541,0.55,2529.8,2529.7,3.9530379]
[1748827982661,0.02,2529.9,2529.8,3.95288165]
[1748827986541,1.3339,2529.9,2529.8,3.95288165]
[1748827987436,1.3339,2529.9,2529.7,3.9529701]
[1748827987967,0.55,2529.7,2529.2,3.95381938]
[1748827988172,0.55,2529.8,2529.7,3.9530379]
[1748827988378,0.92760058,2529.8,2529.7,3.9530379]
[1748827989530,0.55,2529.8,2529.7,3.9530379]
[1748827991188,1.314,2529.6,2529.1,3.95388738]
[1748827991485,0.55,2529.2,2529.1,3.95397572]
[1748827998895,0.764,2529.3,2529.2,3.95381938]
[1748827999055,1.314,2529.3,2529.2,3.95381938]
[1748828004294,0.55,2529.3,2529.2,3.95381938]
[1748828008470,0.20603942,2529.5,2529.4,3.95350676]
[1748828008779,0.55,2529.5,2529.4,5.21717293]
[1748828017440,0.55,2529.5,2529.4,3.95350676]
[1748828018002,1.3368,2529.4,2529.3,3.95366306]
[1748828028143,0.55,2529.4,2529.3,3.95366306]
[1748828033851,0.786,2529.7,2529.6,3.95319418]
[1748828034038,1.713637,2529.7,2529.6,3.95319418]
[1748828036085,1.71384965,2529.7,2529.6,3.95319418]
[1748828037588,0.92784965,2529.7,2529.6,3.95319418]
[1748828038106,0.92790105,2529.7,2529.6,3.95319418]
[1748828039275,0.92790105,2529.7,2529.6,5.55274577]
[1748828039479,0.55,2529.7,2529.6,4.74384577]
[1748828039654,0.55,2529.7,2529.6,3.95319418]
[1748828040774,0.55,2529.6,2529.0,0.7713]
[1748828040949,0.55,2529.6,2529.5,3.95335046]
[1748828041138,0.92788271,2529.6,2529.5,3.95335046]
[1748828043360,0.92799272,2529.6,2529.5,3.95335046]
[1748828044087,0.92799272,2529.6,2529.4,3.95338282]
[1748828044385,0.3780231,2529.5,2529.2,3.95380563]
[1748828044585,0.55,2529.3,2529.2,3.95380563]
[1748828044752,0.9280231,2529.3,2529.2,3.95380563]
[1748828045890,0.49252888,2529.9,2529.5,0.7782]
[1748828046092,0.02,2529.9,2529.8,3.95288165]
[1748828046251,0.94805807,2529.9,2529.8,3.95288165]
[1748828046953,0.94805807,2529.9,2529.7,3.95295386]
[1748828047151,0.94805807,2529.9,2529.2,4.82161159]
[1748828047152,0.55,2529.7,2529.0,0.7753]
[1748828047382,5.23115807,2529.8,2529.3,3.9535911]
[1748828047383,0.55,2529.5,2529.3,3.9535911]
[1748828047585,0.55,2529.5,2529.4,3.95350676]
[1748828047783,0.37802526,2529.5,2529.4,3.95350676]
[1748828048192,0.37802526,2529.5,2529.4,4.72880676]
[1748828048378,0.02,2529.9,2529.8,3.95288165]
[1748828048593,0.39801273,2529.9,2529.8,3.95288165]
[1748828048767,0.94801273,2529.9,2529.8,3.95288165]
[1748828049275,3.32001273,2529.9,2529.8,3.95288165]
[1748828049468,0.94801273,2529.9,2529.8,3.95288165]
[1748828052197,0.94798833,2529.9,2529.8,3.95288165]
[1748828052398,0.02,2529.9,2529.8,5.58239733]
[1748828052598,0.02,2529.9,2529.8,5.54287123]
[1748828059911,0.02,2529.9,2529.8,13.58239141]
[1748828060073,0.02,2529.9,2529.8,13.54287123]
[1748828061299,0.02,2529.9,2529.8,17.62887123]
[1748828064908,0.02,2529.9,2529.8,13.54287123]
[1748828065105,0.02,2529.9,2529.8,5.54287123]
[1748828065402,0.02,2529.9,2529.8,4.74347123]
[1748828067411,0.02,2529.9,2529.8,4.78299205]
[1748828067619,0.02,2529.9,2529.8,13.52507123]
[1748828067823,0.02,2529.9,2529.8,21.44719163]
[1748828068696,0.02,2529.9,2529.8,21.44619163]
[1748828069435,0.02,2529.9,2529.8,18.69507123]
[1748828070131,0.02,2529.9,2529.8,13.52507123]
[1748828070334,0.02,2529.9,2529.8,4.74347123]
[1748828072140,0.02,2529.9,2529.8,8.27889163]
[1748828075133,0.02,2529.9,2529.8,16.27889163]
[1748828077845,0.02,2529.9,2529.8,21.02889163]
[1748828084712,0.02,2529.9,2529.8,25.11389163]
[1748828090851,0.02,2529.9,2529.8,21.02889163]
[1748828091055,0.02,2529.9,2529.8,26.19089163]
[1748828092979,0.02,2529.9,2529.8,22.10589163]
[1748828093125,0.02,2529.9,2529.8,26.19089163]
[1748828095842,0.02,2529.9,2529.8,21.02889163]
[1748828096140,0.02,2529.9,2529.8,26.18989163]
[1748828097726,0.02,2529.9,2529.8,28.94001203]
[1748828098181,0.02,2529.9,2529.8,26.18989163]
[1748828099430,0.02,2529.9,2529.8,32.94001203]
[1748828100366,0.02,2529.9,2529.8,30.18989163]
[1748828100546,0.8527,2530.9,2530.8,3.95131974]
[1748828100749,0.8527,2530.9,2530.8,7.49171705]
[1748828101059,0.8527,2530.9,2530.8,4.74159665]
[1748828102228,0.02,2530.9,2530.8,4.74159665]
[1748828102540,0.02,2530.9,2530.8,15.49171705]
[1748828105068,0.02,2530.9,2530.8,12.74159665]
[1748828105434,0.7976,2530.9,2530.8,3.95131974]
[1748828110443,0.02,2530.9,2530.8,3.95131974]
[1748828111288,0.02,2530.9,2530.8,6.74094608]
[1748828111499,0.02,2530.9,2530.8,6.74094354]
[1748828111667,0.02,2531.9,2531.8,3.94975906]
[1748828111989,0.02,2531.9,2531.8,7.52935283]
[1748828112347,0.02,2531.9,2531.8,7.48986248]
[1748828112944,0.02,2531.9,2531.8,7.52935205]
[1748828113145,0.02,2531.9,2531.8,12.77923165]
[1748828113391,0.02,2531.9,2531.8,16.24256248]
[1748828115694,0.02,2531.9,2531.8,16.25162882]
[1748828116895,0.02,2531.9,2531.8,16.24256248]
[1748828118299,0.02,2531.9,2531.8,21.40056248]
[1748828119157,0.02,2531.9,2531.8,26.15056248]
[1748828119362,0.02,2531.9,2531.8,28.90068288]
[1748828119620,0.02,2531.9,2531.8,26.15056248]
[1748828119799,0.02,2531.9,2531.8,26.15486808]
[1748828120180,0.02,2531.9,2531.8,26.15452909]
[1748828121411,0.02,2531.9,2531.8,28.90464949]
[1748828121567,0.02,2531.9,2531.8,30.15452909]
[1748828124795,0.02,2531.9,2531.8,24.99652909]
[1748828125005,0.02,2531.9,2531.8,26.15352909]
[1748828125904,0.02,2531.9,2531.8,17.49370869]
[1748828126205,0.8181,2531.9,2531.8,3.95372567]
[1748828126929,1.3681,2531.9,2531.8,3.95372567]
[1748828133101,8.06782346,2531.9,2531.8,0.00396661]
[1748828133303,9.26954837,2531.9,2531.8,0.00396661]
[1748828133594,0.55,2531.8,2531.0,3.95098808]
[1748828133789,0.55,2531.1,2531.0,3.95098808]
[1748828133997,1.1391,2531.1,2531.0,3.95098808]
[1748828134933,0.7873,2531.1,2530.9,3.95108953]
[1748828135132,0.7798,2531.0,2530.9,3.95108953]
[1748828136019,1.3298,2531.0,2530.9,3.95108953]
[1748828136324,0.55,2530.8,2530.7,3.95141563]
[1748828136728,0.55,2530.8,2530.6,3.95161061]
[1748828136893,0.8176,2530.9,2530.6,3.95161061]
[1748828137409,0.8176,2530.9,2530.5,3.95177252]
[1748828138027,0.55,2530.6,2530.3,1.076]
[1748828138326,0.55,2530.6,2530.5,3.95178818]
[1748828139418,0.831,2530.5,2530.3,1.076]
[1748828139624,0.8025,2530.3,2530.2,3.95216124]
[1748828141815,1.3525,2530.3,2530.2,3.95216124]
[1748828143309,0.55,2530.6,2530.5,3.95178818]
[1748828144341,0.7804,2530.7,2530.6,3.95163202]
[1748828144547,0.7558,2531.3,2530.7,3.95144062]
[1748828144702,0.7558,2531.3,2531.1,3.95074243]
[1748828144902,0.7558,2531.3,2531.2,3.95069532]
[1748828147666,1.3058,2531.3,2531.2,3.95069532]
[1748828150148,0.8316,2531.6,2531.0,0.7599]
[1748828150443,0.55,2531.5,2531.4,3.95027999]
[1748828150635,0.3816,2531.6,2531.4,3.95027999]
[1748828151460,0.3816,2531.6,2531.2,3.95058427]
[1748828151461,0.3816,2531.6,2531.3,3.9504841]
[1748828151667,0.83532796,2531.6,2531.2,3.95062207]
[1748828151828,0.45372796,2531.6,2530.7,1.076]
[1748828152167,0.45372796,2531.6,2531.3,3.95041518]
[1748828152672,0.55,2531.5,2531.3,3.95041518]
[1748828152836,0.45372796,2531.6,2531.3,3.9504583]
[1748828153026,0.55,2531.5,2531.4,3.95038318]
[1748828153766,3.7247,2531.5,2531.4,3.95038318]
[1748828153969,1.3527,2531.5,2531.4,3.95038318]
[1748828154168,1.3527,2531.5,2531.3,3.9504251]
[1748828154734,1.3527,2531.5,2531.3,3.9504656]
[1748828155140,0.96870204,2531.7,2531.1,0.7628]
[1748828155358,0.55,2531.6,2531.3,3.95040958]
[1748828155537,1.0968469,2531.6,2531.3,3.95040958]
[1748828155874,0.55,2531.4,2531.0,3.9510075]
[1748828156074,0.55,2531.4,2531.1,3.95076586]
[1748828156669,0.75589465,2531.4,2531.1,3.95076586]
[1748828156873,0.75589465,2531.4,2531.2,3.95067666]
[1748828157038,0.75589465,2531.4,2531.3,3.95053924]
[1748828160212,0.20589465,2531.4,2531.3,3.95053924]
[1748828160748,0.20589465,2531.4,2531.2,3.95060883]
[1748828160969,0.75589465,2531.4,2531.2,3.95060883]
[1748828161174,0.75589465,2531.4,2531.3,3.95053924]
[1748828165825,0.75589465,2531.4,2531.2,3.95061549]
[1748828166099,0.75589465,2531.4,2531.3,3.95053924]
[1748828168294,1.3684,2531.3,2530.5,0.776]
[1748828168603,3.50223224,2531.4,2530.9,3.95116361]
[1748828168604,0.55,2531.0,2530.9,3.95116361]
[1748828169001,0.20589465,2531.4,2531.2,3.95069532]
[1748828169204,0.20589465,2531.4,2531.3,3.95053924]
[1748828169387,0.20589465,2531.4,2531.0,3.95090052]
[1748828169590,0.55,2531.1,2531.0,3.95092176]
[1748828169819,0.55,2531.1,2531.0,3.9510075]
[1748828171734,0.55,2531.1,2530.9,3.95110897]
[1748828171735,0.55,2531.1,2530.3,4.76606895]
[1748828171941,0.37737289,2531.0,2530.4,5.74023376]
[1748828172143,0.55,2531.1,2531.0,3.9510075]
[1748828172439,0.37736827,2531.1,2531.0,3.9510075]
[1748828172638,0.75589465,2531.4,2531.3,3.95053924]
[1748828173142,1.13345356,2531.4,2531.3,3.95053924]
[1748828173703,1.83345356,2531.4,2531.3,3.95053924]
[1748828174134,1.13345356,2531.4,2531.3,3.95053924]
[1748828174605,0.55,2531.3,2531.2,3.95064525]
[1748828174807,0.92755891,2531.3,2531.2,3.95064525]
[1748828176310,0.92755891,2531.3,2531.2,4.74079238]
[1748828176523,0.20589465,2531.4,2531.3,3.95053924]
[1748828176724,1.1336033,2531.4,2531.3,3.95053924]
[1748828177427,1.3575,2531.3,2531.1,3.95076305]
[1748828177771,0.92770865,2531.2,2531.1,3.95076305]